[Event "Kvibergspelen 2018"]
[Site "Prioritet Serneke Arena, Krutvagen 2, Gothenburg, Sweden"]
[Date "2018.04.21"]
[Round "6.11"]
[White "Harren, Mats"]
[Black "Johansson, Gunnar"]
[Result "0-1"]
[TimeControl "15 minutes + 5 seconds per move from move one (Round 1 - 4) / 90 minutes + 30 seconds per move from move one (Round 5 - 8)"]
[WhiteFideId "1703943"]
[BlackFideId "1703501"]
[WhiteElo "2098"]
[BlackElo "2212"]

1. e4 {[%clk 01:30:48]} {[%emt 00:00:11]} g6 {[%clk 01:30:48]} {[%emt
00:00:12]} 2. d4 {[%clk 01:30:52]} {[%emt 00:00:26]} Bg7 {[%clk 01:31:12]}
{[%emt 00:00:06]} 3. Nc3 {[%clk 01:31:05]} {[%emt 00:00:17]} d6 {[%clk
01:31:35]} {[%emt 00:00:07]} 4. Bg5 {[%clk 01:31:13]} {[%emt 00:00:22]} h6
{[%clk 01:28:22]} {[%emt 00:03:43]} 5. Be3 {[%clk 01:29:20]} {[%emt 00:02:23]}
a6 {[%clk 01:28:42]} {[%emt 00:00:10]} 6. Qd2 {[%clk 01:26:39]} {[%emt
00:03:11]} b5 {[%clk 01:28:40]} {[%emt 00:00:32]} 7. Bd3 {[%clk 01:22:58]}
{[%emt 00:04:11]} Nd7 {[%clk 01:26:39]} {[%emt 00:11:07]} 8. a4 {[%clk
01:12:12]} {[%emt 00:02:40]} b4 {[%clk 01:25:53]} {[%emt 00:01:15]} 9. Nce2
{[%clk 01:12:03]} {[%emt 00:00:40]} a5 {[%clk 01:16:12]} {[%emt 00:10:11]} 10.
c3 {[%clk 01:06:07]} {[%emt 00:06:26]} bxc3 {[%clk 01:09:05]} {[%emt 00:07:37]}
11. bxc3 {[%clk 01:05:34]} {[%emt 00:01:03]} Ngf6 {[%clk 01:07:24]} {[%emt
00:02:10]} 12. f3 {[%clk 00:57:04]} {[%emt 00:09:00]} Ba6 {[%clk 00:55:53]}
{[%emt 00:12:01]} 13. Bxa6 {[%clk 00:55:01]} {[%emt 00:02:33]} Rxa6 {[%clk
00:55:50]} {[%emt 00:00:33]} 14. Nh3 {[%clk 00:54:53]} {[%emt 00:00:38]} Nb6
{[%clk 00:47:51]} {[%emt 00:08:29]} 15. Qd3 {[%clk 00:51:26]} {[%emt 00:03:57]}
Ra8 {[%clk 00:48:07]} {[%emt 00:00:14]} 16. O-O {[%clk 00:40:16]} {[%emt
00:11:41]} O-O {[%clk 00:45:25]} {[%emt 00:03:11]} 17. Rfb1 {[%clk 00:37:55]}
{[%emt 00:02:51]} Qd7 {[%clk 00:42:21]} {[%emt 00:03:34]} 18. Qb5 {[%clk
00:34:54]} {[%emt 00:03:31]} Rfb8 {[%clk 00:41:06]} {[%emt 00:01:45]} 19. Qxd7
{[%clk 00:32:03]} {[%emt 00:03:21]} Nfxd7 {[%clk 00:39:36]} {[%emt 00:02:01]}
20. Nhf4 {[%clk 00:28:44]} {[%emt 00:03:49]} Nc4 {[%clk 00:31:58]} {[%emt
00:08:08]} 21. Kf2 {[%clk 00:26:57]} {[%emt 00:02:17]} c6 {[%clk 00:32:13]}
{[%emt 00:00:14]} 22. Nd3 {[%clk 00:24:29]} {[%emt 00:02:58]} Rxb1 {[%clk
00:28:55]} {[%emt 00:03:48]} 23. Rxb1 {[%clk 00:24:42]} {[%emt 00:00:18]} Rb8
{[%clk 00:29:18]} {[%emt 00:00:07]} 24. Rxb8+ {[%clk 00:23:39]} {[%emt
00:01:33]} Nxb8 {[%clk 00:29:45]} {[%emt 00:00:02]} 25. Bc1 {[%clk 00:16:30]}
{[%emt 00:07:39]} Nd7 {[%clk 00:29:37]} {[%emt 00:00:38]} 26. Nb2 {[%clk
00:16:07]} {[%emt 00:00:54]} Nxb2 {[%clk 00:23:34]} {[%emt 00:06:33]} 27. Bxb2
{[%clk 00:16:24]} {[%emt 00:00:12]} Nb6 {[%clk 00:23:59]} {[%emt 00:00:05]} 28.
Bc1 {[%clk 00:16:33]} {[%emt 00:00:22]} Nxa4 {[%clk 00:24:10]} {[%emt
00:00:20]} 29. Ke3 {[%clk 00:16:44]} {[%emt 00:00:18]} Nb6 {[%clk 00:15:26]}
{[%emt 00:09:14]} 30. Kd3 {[%clk 00:14:41]} {[%emt 00:02:33]} d5 {[%clk
00:15:29]} {[%emt 00:00:26]} 31. Kc2 {[%clk 00:13:21]} {[%emt 00:01:50]} e6
{[%clk 00:13:14]} {[%emt 00:02:45]} 32. Nf4 {[%clk 00:11:20]} {[%emt 00:02:31]}
Kf8 {[%clk 00:12:45]} {[%emt 00:00:59]} 33. Nd3 {[%clk 00:10:34]} {[%emt
00:01:16]} Ke8 {[%clk 00:12:59]} {[%emt 00:00:16]} 34. Kb3 {[%clk 00:08:48]}
{[%emt 00:02:16]} h5 {[%clk 00:11:14]} {[%emt 00:02:15]} 35. Bf4 {[%clk
00:06:43]} {[%emt 00:02:35]} Kd7 {[%clk 00:08:27]} {[%emt 00:03:17]} 36. e5
{[%clk 00:04:57]} {[%emt 00:02:16]} Bf8 {[%clk 00:08:30]} {[%emt 00:00:26]} 37.
g4 {[%clk 00:05:10]} {[%emt 00:00:17]} a4+ {[%clk 00:06:39]} {[%emt 00:02:21]}
38. Ka2 {[%clk 00:05:02]} {[%emt 00:00:38]} Be7 {[%clk 00:06:32]} {[%emt
00:00:37]} 39. gxh5 {[%clk 00:04:30]} {[%emt 00:01:02]} gxh5 {[%clk 00:07:00]}
{[%emt 00:00:02]} 40. Bh6 {[%clk 00:04:14]} {[%emt 00:00:46]} Nc4 {[%clk
00:07:05]} {[%emt 00:00:25]} 41. Nb2 {[%clk 00:02:16]} {[%emt 00:02:28]} Nxb2
{[%clk 00:07:19]} {[%emt 00:00:16]} 42. Kxb2 {[%clk 00:02:43]} {[%emt
00:00:03]} c5 {[%clk 00:07:38]} {[%emt 00:00:11]} 43. Bc1 {[%clk 00:02:21]}
{[%emt 00:00:52]} Kc6 {[%clk 00:07:47]} {[%emt 00:00:21]} 44. Be3 {[%clk
00:01:11]} {[%emt 00:01:40]} Kb5 {[%clk 00:07:56]} {[%emt 00:00:21]} 45. Bf2
{[%clk 00:00:43]} {[%emt 00:00:59]} Kc4 {[%clk 00:08:16]} {[%emt 00:00:11]} 46.
Ka3 {[%clk 00:00:34]} {[%emt 00:00:39]} cxd4+ {[%clk 00:08:26]} {[%emt
00:00:19]} 47. Kxa4 {[%clk 00:00:54]} {[%emt 00:00:11]} 0-1

[Event "Kvibergspelen 2018"]
[Site "Prioritet Serneke Arena, Krutvagen 2, Gothenburg, Sweden"]
[Date "2018.04.21"]
[Round "6.12"]
[White "Ronneland, Daniel"]
[Black "Strom-Engdahl, Alexander"]
[Result "1/2-1/2"]
[TimeControl "15 minutes + 5 seconds per move from move one (Round 1 - 4) / 90 minutes + 30 seconds per move from move one (Round 5 - 8)"]
[WhiteFideId "1702130"]
[BlackFideId "1741586"]
[WhiteElo "2201"]
[BlackElo "1720"]

1. e4 {[%clk 01:30:56]} {[%emt 00:00:03]} Nf6 {[%clk 01:30:36]} {[%emt
00:00:25]} 2. e5 {[%clk 01:30:23]} {[%emt 00:01:03]} Nd5 {[%clk 01:30:48]}
{[%emt 00:00:17]} 3. d4 {[%clk 01:30:40]} {[%emt 00:00:13]} d6 {[%clk
01:30:54]} {[%emt 00:00:24]} 4. c4 {[%clk 01:30:57]} {[%emt 00:00:13]} Nb6
{[%clk 01:31:15]} {[%emt 00:00:08]} 5. exd6 {[%clk 01:30:36]} {[%emt 00:00:52]}
exd6 {[%clk 01:30:13]} {[%emt 00:01:31]} 6. Nf3 {[%clk 01:24:08]} {[%emt
00:06:58]} Bg4 {[%clk 01:29:53]} {[%emt 00:00:49]} 7. Be2 {[%clk 01:17:22]}
{[%emt 00:14:12]} Be7 {[%clk 01:28:06]} {[%emt 00:00:01]} 8. O-O {[%clk
01:13:53]} O-O {[%clk 01:26:43]} {[%emt 00:01:11]} 9. Nc3 {[%clk 01:13:32]}
{[%emt 00:00:51]} Nc6 {[%clk 01:25:56]} {[%emt 00:01:17]} 10. d5 {[%clk
01:10:47]} {[%emt 00:03:15]} Bxf3 {[%clk 01:25:45]} {[%emt 00:00:41]} 11. gxf3
{[%clk 01:09:28]} {[%emt 00:01:49]} Ne5 {[%clk 01:25:39]} {[%emt 00:00:36]} 12.
b3 {[%clk 01:09:35]} {[%emt 00:00:23]} Bf6 {[%clk 01:24:38]} {[%emt 00:01:32]}
13. Qc2 {[%clk 01:06:26]} {[%emt 00:03:38]} Re8 {[%clk 01:23:42]} {[%emt
00:01:27]} 14. Be3 {[%clk 01:00:40]} {[%emt 00:06:16]} Qc8 {[%clk 01:18:42]}
{[%emt 00:05:31]} 15. Kg2 {[%clk 00:40:27]} {[%emt 00:20:42]} Ng6 {[%emt
00:13:38]} 1/2-1/2

[Event "Kvibergspelen 2018"]
[Site "Prioritet Serneke Arena, Krutvagen 2, Gothenburg, Sweden"]
[Date "2018.04.21"]
[Round "6.13"]
[White "Rasti, Arvin"]
[Black "Wengholm, Anders"]
[Result "1/2-1/2"]
[TimeControl "15 minutes + 5 seconds per move from move one (Round 1 - 4) / 90 minutes + 30 seconds per move from move one (Round 5 - 8)"]
[WhiteFideId "1741160"]
[BlackFideId "1704818"]
[WhiteElo "1920"]
[BlackElo "2158"]

1. d4 {[%clk 01:30:51]} {[%emt 00:00:08]} Nf6 {[%clk 01:30:52]} {[%emt
00:00:08]} 2. c4 {[%clk 01:31:16]} {[%emt 00:00:05]} e6 {[%clk 01:31:12]}
{[%emt 00:00:11]} 3. Nc3 {[%clk 01:31:31]} {[%emt 00:00:14]} Bb4 {[%clk
01:31:34]} {[%emt 00:00:09]} 4. e3 {[%clk 01:31:44]} {[%emt 00:00:17]} O-O
{[%clk 01:31:11]} {[%emt 00:00:53]} 5. Bd3 {[%clk 01:31:32]} {[%emt 00:00:42]}
c5 {[%clk 01:29:23]} {[%emt 00:02:18]} 6. Nf3 {[%clk 01:31:20]} {[%emt
00:00:42]} d6 {[%clk 01:25:14]} {[%emt 00:04:39]} 7. Bd2 {[%clk 01:26:07]}
{[%emt 00:05:43]} Nc6 {[%clk 01:13:48]} {[%emt 00:11:57]} 8. a3 {[%clk
01:21:14]} {[%emt 00:05:22]} Ba5 {[%clk 01:06:56]} {[%emt 00:07:22]} 9. d5
{[%clk 01:05:13]} {[%emt 00:16:31]} exd5 {[%clk 01:04:57]} {[%emt 00:02:29]} 10.
cxd5 {[%clk 01:05:13]} {[%emt 00:00:30]} Ne7 {[%clk 01:04:34]} {[%emt
00:00:53]} 11. e4 {[%clk 01:04:07]} {[%emt 00:01:36]} Ng6 {[%clk 01:04:28]}
{[%emt 00:00:36]} 12. O-O {[%clk 01:02:00]} {[%emt 00:02:37]} Re8 {[%clk
01:01:15]} {[%emt 00:03:44]} 13. Re1 {[%clk 00:58:33]} {[%emt 00:03:57]} Bg4
{[%clk 01:00:51]} {[%emt 00:00:53]} 14. h3 {[%clk 00:55:52]} {[%emt 00:03:10]}
Bxf3 {[%clk 01:00:42]} {[%emt 00:00:40]} 15. Qxf3 {[%clk 00:56:12]} {[%emt
00:00:09]} Ne5 {[%clk 01:00:38]} {[%emt 00:00:35]} 16. Qe3 {[%clk 00:55:37]}
{[%emt 00:01:04]} a6 {[%clk 00:57:47]} {[%emt 00:03:23]} 17. a4 {[%clk
00:50:21]} {[%emt 00:05:46]} Nxd3 {[%clk 00:53:47]} {[%emt 00:04:30]} 18. Qxd3
{[%clk 00:50:44]} {[%emt 00:00:06]} Nd7 {[%clk 00:54:00]} {[%emt 00:00:17]} 19.
Qg3 {[%clk 00:48:33]} {[%emt 00:02:41]} Qe7 {[%clk 00:39:15]} {[%emt 00:15:16]}
20. Bf4 {[%clk 00:46:15]} {[%emt 00:02:47]} 1/2-1/2

[Event "Kvibergspelen 2018"]
[Site "Prioritet Serneke Arena, Krutvagen 2, Gothenburg, Sweden"]
[Date "2018.04.21"]
[Round "6.14"]
[White "Crevatin, Leo"]
[Black "Eriksson, Lennarth"]
[Result "1-0"]
[TimeControl "15 minutes + 5 seconds per move from move one (Round 1 - 4) / 90 minutes + 30 seconds per move from move one (Round 5 - 8)"]
[WhiteFideId "1726307"]
[BlackFideId "1707736"]
[WhiteElo "2157"]
[BlackElo "2098"]

1. d4 {[%clk 01:30:59]} {[%emt 00:06:35]} Nf6 {[%clk 01:30:10]} {[%emt
00:00:51]} 2. c4 {[%clk 01:31:14]} {[%emt 00:00:15]} c5 {[%clk 01:30:22]}
{[%emt 00:00:18]} 3. d5 {[%clk 01:31:40]} {[%emt 00:00:05]} e6 {[%clk
01:30:44]} {[%emt 00:00:08]} 4. Nc3 {[%clk 01:32:05]} {[%emt 00:00:05]} exd5
{[%clk 01:30:49]} {[%emt 00:00:25]} 5. cxd5 {[%clk 01:32:34]} {[%emt 00:00:02]}
Bd6 {[%clk 01:31:07]} {[%emt 00:00:12]} 6. g3 {[%clk 01:30:42]} {[%emt
00:02:22]} O-O {[%clk 01:27:49]} {[%emt 00:03:48]} 7. Bg2 {[%clk 01:31:05]}
{[%emt 00:00:07]} Bc7 {[%clk 01:26:37]} {[%emt 00:01:42]} 8. Nf3 {[%clk
01:30:52]} {[%emt 00:00:42]} d6 {[%clk 01:26:48]} {[%emt 00:00:20]} 9. O-O
{[%clk 01:31:03]} {[%emt 00:00:19]} Re8 {[%clk 01:25:59]} {[%emt 00:01:19]} 10.
Nd2 {[%clk 01:30:48]} {[%emt 00:00:45]} Ba5 {[%clk 01:22:46]} {[%emt 00:03:43]}
11. a4 {[%clk 01:26:02]} {[%emt 00:09:44]} Bxc3 {[%clk 01:16:45]} {[%emt
00:02:02]} 12. bxc3 {[%clk 01:26:22]} {[%emt 00:00:10]} b6 {[%clk 01:13:10]}
{[%emt 00:04:05]} 13. Re1 {[%clk 01:25:30]} {[%emt 00:01:21]} Ba6 {[%clk
01:02:36]} {[%emt 00:11:05]} 14. c4 {[%clk 01:22:20]} {[%emt 00:03:40]} Nbd7
{[%clk 01:02:11]} {[%emt 00:00:54]} 15. Bb2 {[%clk 01:21:10]} {[%emt 00:01:41]}
Ne5 {[%clk 00:56:40]} {[%emt 00:06:00]} 16. Qc2 {[%clk 01:21:25]} {[%emt
00:00:15]} Qd7 {[%clk 00:51:59]} {[%emt 00:05:12]} 17. f4 {[%clk 01:19:09]}
{[%emt 00:02:46]} Ng6 {[%clk 00:45:28]} {[%emt 00:07:01]} 18. e4 {[%clk
01:19:05]} {[%emt 00:00:34]} Rad8 {[%clk 00:40:11]} {[%emt 00:05:47]} 19. Qc3
{[%clk 01:16:13]} {[%emt 00:03:22]} Re7 {[%clk 00:27:00]} {[%emt 00:13:39]} 20.
h3 {[%clk 01:11:54]} {[%emt 00:04:49]} h5 {[%clk 00:25:39]} {[%emt 00:01:52]}
21. Qf3 {[%clk 01:04:03]} {[%emt 00:08:21]} h4 {[%clk 00:22:50]} {[%emt
00:03:19]} 22. g4 {[%clk 01:03:06]} {[%emt 00:01:27]} Nh7 {[%clk 00:20:29]}
{[%emt 00:02:51]} 23. Rf1 {[%clk 00:59:37]} {[%emt 00:03:59]} Rde8 {[%clk
00:19:42]} {[%emt 00:01:17]} 24. Qb3 {[%clk 00:58:51]} {[%emt 00:01:15]} f6
{[%clk 00:19:11]} {[%emt 00:01:01]} 25. Rae1 {[%clk 00:57:47]} {[%emt
00:01:33]} Bb7 {[%clk 00:16:17]} {[%emt 00:03:25]} 26. Qc2 {[%clk 00:57:17]}
{[%emt 00:01:01]} Nhf8 {[%clk 00:15:31]} {[%emt 00:01:16]} 27. Qb3 {[%clk
00:54:49]} {[%emt 00:02:57]} Bc8 {[%clk 00:12:59]} {[%emt 00:03:03]} 28. Rf2
{[%clk 00:54:23]} {[%emt 00:00:55]} Qc7 {[%clk 00:12:03]} {[%emt 00:01:26]} 29.
Rb1 {[%clk 00:50:50]} {[%emt 00:04:02]} Qd8 {[%clk 00:09:11]} {[%emt 00:03:23]}
30. Qc2 {[%clk 00:50:41]} {[%emt 00:00:40]} a6 {[%clk 00:08:32]} {[%emt
00:01:10]} 31. Bf1 {[%clk 00:51:02]} {[%emt 00:00:07]} Rb7 {[%clk 00:08:40]}
{[%emt 00:00:22]} 32. Bd3 {[%clk 00:51:13]} {[%emt 00:00:19]} Nh8 {[%clk
00:06:41]} {[%emt 00:02:28]} 33. Nf3 {[%clk 00:49:46]} {[%emt 00:01:58]} Nhg6
{[%clk 00:06:37]} {[%emt 00:00:34]} 34. Ne1 {[%clk 00:49:17]} {[%emt 00:00:58]}
Nh8 {[%clk 00:04:13]} {[%emt 00:02:54]} 35. Nf3 {[%clk 00:49:09]} {[%emt
00:00:37]} Nhg6 {[%clk 00:03:57]} {[%emt 00:00:46]} 36. Ne1 {[%clk 00:49:03]}
{[%emt 00:00:37]} Nh8 {[%clk 00:04:15]} {[%emt 00:00:12]} 37. Ng2 {[%clk
00:49:32]} {[%emt 00:00:02]} Nf7 {[%clk 00:03:02]} {[%emt 00:01:42]} 38. Nxh4
{[%clk 00:49:49]} {[%emt 00:00:13]} g5 {[%clk 00:03:10]} {[%emt 00:00:22]} 39.
fxg5 {[%clk 00:50:04]} {[%emt 00:00:15]} fxg5 {[%clk 00:02:27]} {[%emt
00:01:13]} 40. Bf6 {[%clk 00:48:05]} {[%emt 00:02:30]} Qc7 {[%clk 00:02:33]}
{[%emt 00:00:24]} 41. Nf3 {[%clk 00:47:57]} {[%emt 00:00:37]} Nh7 {[%clk
00:01:35]} {[%emt 00:01:28]} 42. Bc3 {[%clk 00:48:09]} {[%emt 00:00:18]} Qe7
{[%clk 00:01:14]} {[%emt 00:00:51]} 43. e5 {[%clk 00:44:32]} {[%emt 00:04:07]}
Nxe5 {[%clk 00:01:31]} {[%emt 00:00:12]} 44. Bxe5 {[%clk 00:44:37]} {[%emt
00:00:26]} dxe5 {[%clk 00:01:54]} {[%emt 00:00:08]} 45. Re1 {[%clk 00:44:22]}
{[%emt 00:00:45]} Qd6 {[%clk 00:01:43]} {[%emt 00:00:41]} 46. Bxh7+ {[%clk
00:44:42]} {[%emt 00:00:10]} Rxh7 {[%clk 00:02:09]} {[%emt 00:00:04]} 47. Nxg5
{[%clk 00:45:01]} {[%emt 00:00:11]} 1-0

[Event "Kvibergspelen 2018"]
[Site "Prioritet Serneke Arena, Krutvagen 2, Gothenburg, Sweden"]
[Date "2018.04.21"]
[Round "6.15"]
[White "Bergre, Joachim"]
[Black "Bjorklund, Thomas"]
[Result "0-1"]
[TimeControl "15 minutes + 5 seconds per move from move one (Round 1 - 4) / 90 minutes + 30 seconds per move from move one (Round 5 - 8)"]
[WhiteFideId "1704893"]
[BlackFideId "1724576"]
[WhiteElo "1974"]
[BlackElo "2156"]

1. c4 {[%clk 01:30:10]} {[%emt 00:00:49]} c5 {[%clk 01:27:48]} {[%emt
00:03:12]} 2. g3 {[%clk 01:30:11]} {[%emt 00:00:29]} g6 {[%clk 01:28:09]}
{[%emt 00:00:09]} 3. Bg2 {[%clk 01:30:17]} {[%emt 00:00:24]} Bg7 {[%clk
01:28:33]} {[%emt 00:00:06]} 4. Nc3 {[%clk 01:29:46]} {[%emt 00:01:01]} Nf6
{[%clk 01:28:50]} {[%emt 00:00:15]} 5. a3 {[%clk 01:29:23]} {[%emt 00:00:53]}
Nc6 {[%clk 01:28:48]} {[%emt 00:00:31]} 6. Rb1 {[%clk 01:29:39]} {[%emt
00:00:14]} O-O {[%clk 01:28:39]} {[%emt 00:00:39]} 7. b4 {[%clk 01:29:26]}
{[%emt 00:00:42]} cxb4 {[%clk 01:27:41]} {[%emt 00:01:28]} 8. axb4 {[%clk
01:26:40]} {[%emt 00:03:16]} e6 {[%clk 01:27:57]} {[%emt 00:00:13]} 9. Nf3
{[%clk 01:20:38]} {[%emt 00:12:28]} d5 {[%clk 01:28:09]} 10. b5 {[%clk
01:16:09]} {[%emt 00:00:02]} Ne7 {[%clk 01:28:27]} 11. cxd5 {[%clk 01:12:59]}
{[%emt 00:03:12]} Nexd5 {[%clk 01:28:09]} {[%emt 00:00:49]} 12. Nxd5 {[%clk
01:13:10]} {[%emt 00:00:19]} Nxd5 {[%clk 01:28:24]} {[%emt 00:00:14]} 13. O-O
{[%clk 01:12:24]} {[%emt 00:01:16]} Qb6 {[%clk 01:28:02]} {[%emt 00:00:52]} 14.
Qb3 {[%clk 01:08:40]} {[%emt 00:04:13]} Bd7 {[%clk 01:26:46]} {[%emt 00:01:46]}
15. Bb2 {[%clk 01:06:49]} {[%emt 00:02:22]} Bxb2 {[%clk 01:26:45]} {[%emt
00:00:32]} 16. Qxb2 {[%clk 01:05:17]} {[%emt 00:02:02]} Nc7 {[%clk 01:26:46]}
{[%emt 00:00:29]} 17. Ne5 {[%clk 01:05:00]} {[%emt 00:00:46]} Bxb5 {[%clk
01:23:02]} {[%emt 00:04:14]} 18. Ng4 {[%clk 00:59:57]} {[%emt 00:05:33]} e5
{[%clk 01:23:18]} {[%emt 00:00:14]} 19. Qxe5 {[%clk 00:55:27]} {[%emt
00:05:00]} f6 {[%clk 01:23:08]} {[%emt 00:00:40]} 20. Qc3 {[%clk 00:52:05]}
{[%emt 00:03:52]} h5 {[%clk 01:20:09]} {[%emt 00:03:29]} 21. Ne3 {[%clk
00:51:09]} {[%emt 00:01:26]} a6 {[%clk 01:19:37]} {[%emt 00:01:03]} 22. Rfc1
{[%clk 00:45:40]} {[%emt 00:05:58]} Ne6 {[%clk 01:14:09]} {[%emt 00:05:58]} 23.
Nd5 {[%clk 00:33:16]} {[%emt 00:12:52]} Qd4 {[%clk 01:09:17]} {[%emt 00:05:24]}
24. e3 {[%clk 00:33:25]} {[%emt 00:00:20]} Qxc3 {[%clk 01:06:46]} {[%emt
00:03:02]} 25. Rxc3 {[%clk 00:33:48]} {[%emt 00:00:06]} Rad8 {[%clk 01:05:22]}
{[%emt 00:01:54]} 26. d4 {[%clk 00:33:10]} {[%emt 00:01:07]} Rd7 {[%clk
01:05:10]} {[%emt 00:00:43]} 27. Nb4 {[%clk 00:31:29]} {[%emt 00:02:11]} Kg7
{[%clk 01:04:23]} {[%emt 00:01:17]} 28. Rbc1 {[%clk 00:31:25]} {[%emt
00:00:34]} Rfd8 {[%clk 01:04:02]} {[%emt 00:00:51]} 29. h4 {[%clk 00:28:39]}
{[%emt 00:03:16]} g5 {[%clk 01:00:56]} {[%emt 00:03:35]} 30. Bh3 {[%clk
00:28:50]} {[%emt 00:00:20]} g4 {[%clk 01:01:20]} {[%emt 00:00:06]} 31. Bg2
{[%clk 00:29:17]} {[%emt 00:00:04]} f5 {[%clk 01:01:26]} {[%emt 00:00:24]} 32.
Rc8 {[%clk 00:23:49]} {[%emt 00:05:57]} a5 {[%clk 00:56:32]} {[%emt 00:05:24]}
33. Na2 {[%clk 00:21:57]} {[%emt 00:02:22]} Rxc8 {[%clk 00:54:20]} {[%emt
00:02:44]} 34. Rxc8 {[%clk 00:22:16]} {[%emt 00:00:10]} Rc7 {[%clk 00:54:23]}
{[%emt 00:00:27]} 35. Rxc7+ {[%clk 00:21:37]} {[%emt 00:01:09]} Nxc7 {[%clk
00:54:51]} {[%emt 00:00:01]} 36. Bxb7 {[%clk 00:20:50]} {[%emt 00:01:17]} a4
{[%clk 00:54:52]} {[%emt 00:00:29]} 37. d5 {[%clk 00:16:58]} {[%emt 00:04:22]}
Bc4 {[%clk 00:54:52]} {[%emt 00:00:30]} 38. d6 {[%clk 00:16:55]} {[%emt
00:00:33]} Ne6 {[%clk 00:54:44]} {[%emt 00:00:38]} 39. Nb4 {[%clk 00:16:18]}
{[%emt 00:01:07]} Bb3 {[%clk 00:46:32]} {[%emt 00:08:42]} 40. Bd5 {[%clk
00:15:18]} {[%emt 00:01:30]} Nc5 {[%clk 00:44:57]} {[%emt 00:02:05]} 41. Bxb3
{[%clk 00:11:33]} {[%emt 00:04:15]} axb3 {[%clk 00:45:14]} {[%emt 00:00:13]} 42.
Nd3 {[%clk 00:11:56]} {[%emt 00:00:06]} Nxd3 {[%clk 00:44:22]} {[%emt
00:01:23]} 43. d7 {[%clk 00:12:12]} {[%emt 00:00:15]} b2 {[%clk 00:44:46]}
{[%emt 00:00:05]} 44. d8=Q {[%clk 00:12:31]} {[%emt 00:00:10]} b1=Q+ {[%clk
00:45:10]} {[%emt 00:00:08]} 45. Kh2 {[%clk 00:12:47]} {[%emt 00:00:13]} Ne5
{[%clk 00:45:00]} {[%emt 00:00:40]} 46. Qc7+ {[%clk 00:11:59]} {[%emt
00:01:18]} Nf7 {[%clk 00:44:51]} {[%emt 00:00:38]} 47. Qc3+ {[%clk 00:12:20]}
{[%emt 00:00:10]} Kf8 {[%clk 00:40:35]} {[%emt 00:04:46]} 48. Qc5+ {[%clk
00:11:31]} {[%emt 00:01:18]} Ke8 {[%clk 00:37:19]} {[%emt 00:03:47]} 49. Qc6+
{[%clk 00:11:43]} {[%emt 00:00:18]} Ke7 {[%clk 00:37:34]} {[%emt 00:00:14]} 50.
Qc7+ {[%clk 00:12:05]} {[%emt 00:00:08]} Ke6 {[%clk 00:37:19]} {[%emt
00:00:44]} 51. Qc4+ {[%clk 00:12:28]} {[%emt 00:00:07]} Kf6 {[%clk 00:37:28]}
{[%emt 00:00:21]} 52. Qc6+ {[%clk 00:12:48]} {[%emt 00:00:11]} Kg7 {[%clk
00:36:25]} {[%emt 00:01:32]} 53. Qc3+ {[%clk 00:13:12]} {[%emt 00:00:07]} Kh7
{[%clk 00:30:14]} {[%emt 00:06:40]} 54. Qf6 {[%clk 00:11:45]} {[%emt 00:01:58]}
Kg8 {[%clk 00:29:44]} {[%emt 00:01:01]} 55. Qg6+ {[%clk 00:09:54]} {[%emt
00:02:21]} Kf8 {[%clk 00:29:45]} {[%emt 00:00:28]} 56. Qc6 {[%clk 00:09:58]}
{[%emt 00:00:25]} Qe4 {[%clk 00:28:57]} {[%emt 00:01:18]} 57. Qc5+ {[%clk
00:10:11]} {[%emt 00:00:17]} Kg7 {[%clk 00:27:53]} {[%emt 00:01:34]} 58. Qc3+
{[%clk 00:10:30]} {[%emt 00:00:12]} Qe5 {[%clk 00:27:31]} {[%emt 00:00:52]} 59.
Qc6 {[%clk 00:10:08]} {[%emt 00:00:51]} Qd6 {[%clk 00:27:28]} {[%emt 00:00:34]}
60. Qc3+ {[%clk 00:10:20]} {[%emt 00:00:19]} Kg6 {[%clk 00:27:51]} {[%emt
00:00:06]} 61. Qc4 {[%clk 00:09:47]} {[%emt 00:01:04]} Kg7 {[%clk 00:24:46]}
{[%emt 00:03:35]} 62. Qc2 {[%clk 00:09:04]} {[%emt 00:01:12]} Qd5 {[%clk
00:24:47]} {[%emt 00:00:29]} 63. Qc3+ {[%clk 00:08:13]} {[%emt 00:01:21]} Ne5
{[%clk 00:24:16]} {[%emt 00:01:01]} 64. Qc7+ {[%clk 00:08:37]} {[%emt
00:00:06]} Kg6 {[%clk 00:24:08]} {[%emt 00:00:38]} 65. Qb6+ {[%clk 00:06:41]}
{[%emt 00:02:27]} Qc6 {[%clk 00:24:28]} {[%emt 00:00:09]} 0-1